bitfinex/quotes_ETHUSD_20240729
["timestamp","ask_amount","ask_price","bid_price","bid_amount"]
[1722279515346,1.5338685,3318.7,3318.5,3.0134]
[1722279515662,1.5338685,3318.6,3318.5,3.0134]
[1722279516185,1.5338685,3318.6,3318.3,3.01353]
[1722279516381,1.5338685,3318.5,3318.3,3.01353]
[1722279516675,3.64427778,3319.0,3318.4,3.01349]
[1722279516838,3.06275108,3318.9,3318.4,3.01349]
[1722279517039,1.53388153,3318.8,3318.4,3.01349]
[1722279517872,1.53388153,3318.8,3318.7,3.01322]
[1722279518181,1.53375875,3318.9,3318.6,3.01324]
[1722279518388,7.37,3319.1,3318.6,3.01324]
[1722279518389,1.53375875,3318.8,3318.6,3.01324]
[1722279518539,7.37,3319.1,3318.7,3.01322]
[1722279518744,1.53375558,3319.0,3318.7,3.01322]
[1722279519564,2.42413114,3319.0,3318.5,3.0736118]
[1722279519763,1.53375558,3318.9,3318.5,3.01339]
[1722279519952,1.53375558,3318.9,3318.1,2.3047]
[1722279519953,1.53375558,3318.9,3318.2,3.01364]
[1722279520248,1.53375558,3318.9,3318.4,3.01344]
[1722279520890,2.4451,3318.8,3318.2,3.01364]
[1722279521097,1.53375558,3318.7,3318.3,3.01358]
[1722279521596,1.53375558,3318.7,3318.4,3.01349]
[1722279521794,1.53375558,3318.7,3318.3,3.01358]
[1722279522097,2.05971115,3318.7,3318.3,3.01358]
[1722279522293,1.53375558,3318.6,3318.3,3.01358]
[1722279522491,1.53375558,3318.6,3318.2,3.01368]
[1722279524614,1.53375558,3318.5,3318.2,3.01368]
[1722279524775,2.4451,3318.8,3318.2,3.01368]
[1722279524977,1.53395201,3318.7,3318.2,3.01368]
[1722279526322,1.53395201,3318.7,3318.3,3.01357]
[1722279531303,1.53395201,3318.7,3318.4,3.01349]
[1722279531819,1.53395201,3318.6,3318.5,3.0134]
[1722279532200,1.53395201,3318.9,3318.5,3.0134]
[1722279532500,1.53395201,3318.8,3318.5,3.0134]
[1722279532705,1.53395201,3318.7,3318.4,1.114]
[1722279532898,1.53395201,3318.6,3318.4,4.12749]
[1722279533099,0.68134845,3318.9,3318.4,4.12749]
[1722279533327,1.53388262,3318.8,3318.4,4.12749]
[1722279533706,1.53388262,3318.7,3318.4,4.12749]
[1722279533886,1.53388262,3318.6,3318.4,4.12749]
[1722279534095,3.56296,3319.0,3318.4,4.12749]
[1722279534292,1.53388855,3318.9,3318.4,4.12749]
[1722279535416,1.53388855,3318.9,3318.5,3.0134]
[1722279536949,1.53388855,3318.9,3318.6,3.0133]
[1722279538631,1.53388855,3318.9,3318.4,3.01344]
[1722279538951,1.53388855,3318.9,3318.4,1.114]
[1722279539316,1.53388855,3318.9,3318.5,3.01338]
[1722279540420,1.53388855,3318.9,3318.4,1.114]
[1722279540421,1.53388855,3318.9,3318.4,4.12747]
[1722279540638,2.27720441,3318.9,3318.4,3.01347]
[1722279540841,1.53388855,3318.8,3318.4,3.01347]
[1722279541543,1.53388855,3318.8,3318.4,3.01342]
[1722279542068,1.53388855,3318.7,3318.5,3.0134]
[1722279542219,1.53388855,3318.6,3318.5,3.0134]
[1722279542648,0.589935,3318.9,3318.5,3.0134]
[1722279542649,1.53388855,3318.8,3318.5,3.0134]
[1722279546954,1.53388855,3318.8,3318.7,3.01322]
[1722279547201,1.53378911,3318.9,3318.7,3.01316]
[1722279547464,1.53378911,3318.8,3318.7,6.02638]
[1722279547617,1.26416385,3319.3,3318.9,3.01297]
[1722279547821,1.26416385,3319.3,3318.7,0.942078]
[1722279547822,1.53367,3319.2,3319.0,3.0129]
[1722279548469,1.53367,3319.1,3319.0,3.0129]
[1722279548771,1.26416385,3319.4,3319.0,3.0129]
[1722279548772,5.09831325,3319.3,3319.0,3.0129]
[1722279549072,1.53363629,3319.2,3319.0,3.0129]
[1722279549243,1.53363629,3319.1,3319.0,3.0129]
[1722279549968,1.53363629,3319.1,3318.9,3.01299]
[1722279550267,1.53363629,3319.0,3318.9,3.01299]
[1722279550431,1.26470952,3319.3,3318.9,3.01299]
[1722279550636,1.53363629,3319.2,3318.9,3.01299]
[1722279550862,1.26470952,3319.3,3318.9,3.01299]
[1722279550863,1.53363629,3319.1,3318.9,3.01299]
[1722279551079,1.53363629,3319.0,3318.9,3.01299]
[1722279552072,1.53366113,3319.2,3319.1,3.01285]
[1722279552587,1.53366113,3319.3,3319.1,3.01285]
[1722279552800,1.53366113,3319.2,3319.1,3.01285]
[1722279553156,1.53366113,3319.2,3319.0,4.12694]
[1722279553157,1.53351532,3319.4,3319.2,3.01277]
[1722279553355,1.26470952,3319.6,3319.3,1.114]
[1722279553589,1.30859932,3319.5,3319.3,1.114]
[1722279553804,1.30859932,3319.5,3319.1,6.44786]
[1722279554396,3.28991326,3319.5,3318.8,5.33409]
[1722279554730,2.57330884,3319.4,3319.0,1.114]
[1722279554861,1.30859932,3319.3,3319.0,1.114]
[1722279555494,4.40554165,3319.3,3318.4,2.3599]
[1722279555669,4.40554165,3319.3,3318.8,1.114]
[1722279555670,1.30859932,3319.2,3318.8,1.114]
[1722279556500,1.30859932,3319.2,3318.8,4.12713]
[1722279561866,1.30859932,3319.2,3318.9,3.01303]
[1722279562068,1.30859932,3319.1,3319.0,4.12695]
[1722279562894,1.30849048,3319.5,3319.1,3.01284]
[1722279563200,1.30846386,3319.5,3319.2,1.114]
[1722279563989,2.57317338,3319.5,3319.0,1.114]
[1722279564193,5.34532,3319.6,3319.2,1.114]
[1722279564194,1.30846386,3319.4,3319.2,1.114]
[1722279564492,3.59760952,3319.6,3319.2,1.114]
[1722279564493,1.30846386,3319.3,3319.2,1.114]
[1722279564958,1.30846386,3319.5,3319.2,1.114]
[1722279565153,1.30846386,3319.4,3319.2,1.114]
[1722279566509,1.30846386,3319.3,3319.2,1.114]
[1722279566717,1.26470952,3319.7,3319.2,1.114]
[1722279566718,1.30846386,3319.6,3319.2,1.114]
[1722279567010,1.30846386,3319.5,3319.2,1.114]
[1722279567156,0.55854534,3319.6,3319.2,1.114]
[1722279567157,1.30845526,3319.4,3319.2,1.114]
[1722279567392,1.30845526,3319.3,3319.2,1.114]
[1722279568329,1.30845526,3319.5,3319.0,4.12692]
[1722279568500,1.30845526,3319.4,3319.0,1.114]
[1722279568709,1.30845526,3319.4,3318.9,3.01299]
[1722279569089,1.30845526,3319.4,3318.8,1.114]
[1722279569292,1.30845526,3319.4,3318.8,4.12708]
[1722279569531,1.94110082,3319.4,3318.8,4.12708]
[1722279569741,1.30845526,3319.3,3318.8,4.12708]
[1722279570300,1.30845526,3319.3,3319.0,3.01295]
[1722279570950,1.30845526,3319.3,3319.0,4.12695]
[1722279572627,3.61055526,3319.3,3319.0,1.114]
[1722279572800,1.30845526,3319.2,3319.0,1.114]
[1722279573187,1.30845526,3319.1,3319.0,4.12694]
[1722279573388,1.30845526,3319.5,3319.0,1.114]
[1722279573590,1.30845526,3319.4,3319.0,1.114]
[1722279577097,1.30845526,3319.4,3319.0,4.12695]
[1722279577664,1.30845526,3319.3,3319.0,4.12695]
[1722279577865,1.30845526,3319.2,3319.0,4.12695]
[1722279578166,4.5904294,3319.8,3319.0,4.840948]
[1722279578167,1.30845526,3319.1,3319.0,4.840948]
[1722279578319,1.26470952,3319.7,3319.0,4.840948]
[1722279578522,1.30780967,3319.6,3319.2,1.114]
[1722279578921,2.57251919,3319.6,3319.2,1.114]
[1722279579165,1.30780967,3319.5,3319.2,1.114]
[1722279580514,1.30780967,3319.5,3319.0,1.114]
[1722279582052,1.30780967,3319.5,3319.0,4.12693]
[1722279583252,1.30780967,3319.4,3319.0,4.12693]
[1722279583415,1.30780967,3319.3,3319.0,4.12693]
[1722279583621,1.30780967,3319.2,3319.0,4.12693]
[1722279583955,1.30780967,3319.1,3319.0,4.12693]
[1722279584157,1.30780967,3319.6,3319.0,4.12693]
[1722279584455,1.73982364,3319.6,3319.0,4.12693]
[1722279584655,1.30780967,3319.5,3319.0,4.12693]
[1722279585226,1.30780967,3319.4,3319.0,4.12693]
[1722279585427,1.30780967,3319.3,3319.0,4.12693]
[1722279585623,1.30780967,3319.2,3319.0,1.114]
[1722279585866,1.30780967,3319.1,3319.0,1.114]
[1722279586167,1.30780967,3319.4,3319.0,1.114]
[1722279588167,1.98204164,3319.4,3318.8,3.01312]
[1722279588376,1.30780967,3319.3,3318.9,1.114]
[1722279588678,1.30780967,3319.3,3318.9,4.12703]
[1722279588852,1.30780967,3319.2,3319.1,1.114]
[1722279589060,1.30780967,3319.4,3319.1,1.114]
[1722279589373,1.30780967,3319.3,3319.1,1.114]
[1722279589575,1.30780967,3319.2,3319.1,1.114]
[1722279589871,1.30780967,3319.4,3319.1,1.114]
[1722279590052,1.30780967,3319.3,3318.9,4.12703]
[1722279590246,3.01232,3319.7,3318.9,4.12703]
[1722279590247,1.30780967,3319.2,3318.9,5.069536]
[1722279590775,1.30780967,3319.1,3318.9,5.069536]
[1722279590776,2.8928948,3319.6,3319.0,4.12695]
[1722279590934,3.01232,3319.7,3319.0,4.12695]
[1722279590935,2.89401905,3319.5,3319.0,4.12695]
[1722279591272,1.30877044,3319.4,3319.0,4.12695]
[1722279591433,3.01232,3319.7,3319.0,4.840958]
[1722279591434,1.30877044,3319.3,3319.0,4.840958]
[1722279591631,1.30877044,3319.2,3319.1,3.01286]
[1722279591831,1.30877044,3319.7,3319.1,4.12686]
[1722279592037,2.8938871,3319.6,3319.1,4.12686]
[1722279592233,2.89379149,3319.5,3319.1,4.12686]
[1722279592478,1.30877044,3319.4,3319.1,4.12686]
[1722279592731,1.30877044,3319.3,3319.1,4.12686]
[1722279592879,1.30877044,3319.2,3319.1,4.840842]
[1722279593305,1.30877044,3319.7,3319.1,4.840842]
[1722279593510,2.89390237,3319.6,3319.1,4.12686]
[1722279593818,2.89390237,3319.5,3319.1,1.114]
[1722279593985,1.30877044,3319.4,3319.1,1.114]
[1722279594190,1.30877044,3319.3,3319.1,1.114]
[1722279594491,1.30877044,3319.2,3319.1,1.114]
[1722279594877,1.30877044,3319.6,3318.9,3.01296]
[1722279595093,2.89389946,3319.5,3319.0,1.114]
[1722279595435,2.89389946,3319.4,3319.2,1.114]
[1722279595608,1.30877044,3319.3,3319.2,1.114]
[1722279596484,1.30877044,3319.3,3318.9,3.01296]
[1722279596722,1.30877044,3319.2,3319.1,1.114]
[1722279597729,1.30877044,3319.2,3319.1,4.12685]
[1722279598075,1.30877044,3319.7,3319.1,4.12685]
[1722279598303,2.89369815,3319.6,3319.1,4.12685]
[1722279598490,2.89369815,3319.5,3319.1,4.12685]
[1722279598675,2.89369815,3319.4,3319.1,4.12685]
[1722279598918,1.30877044,3319.3,3319.1,4.12685]
[1722279599107,1.30877044,3319.2,3319.1,4.12685]
[1722279599306,1.30877044,3319.2,3319.1,1.114]
[1722279600685,1.30877044,3319.2,3318.7,2.2849]
[1722279600998,4.32163044,3319.1,3318.5,0.63349138]
[1722279601200,2.8937682,3319.0,3318.5,0.63349138]
[1722279601424,1.30877044,3318.9,3318.5,0.63349138]
[1722279601625,1.30877044,3318.8,3318.5,0.63349138]
[1722279601836,1.30877044,3318.7,3318.5,0.63349138]
[1722279601986,1.30877044,3318.6,3318.5,0.63349138]
[1722279602599,13.92540044,3318.6,3318.5,0.63349138]
[1722279602722,17.4525778,3318.6,3318.5,0.63349138]
[1722279602906,18.20531012,3318.6,3318.5,0.63349138]
[1722279603091,21.20531012,3318.6,3318.5,0.63349138]
[1722279603323,20.4525778,3318.6,3318.5,0.63349138]
[1722279603655,23.4658878,3318.6,3318.5,0.63349138]
[1722279604329,17.4392678,3318.6,3318.5,0.63349138]
[1722279604705,14.4259578,3318.6,3318.5,0.63349138]
[1722279604935,3.77147044,3318.6,3318.5,0.63349138]
[1722279605139,1.30877044,3318.6,3318.5,0.63349138]
[1722279605551,4.32208044,3318.6,3318.5,0.63349138]
[1722279605753,4.32208044,3318.6,3317.9,1.114]
[1722279605754,3.01341,3318.5,3317.9,1.114]
[1722279605970,3.01361,3318.3,3317.5,3.423]
[1722279606265,1.114,3318.1,3317.2,1.114]
[1722279606543,1.26016111,3318.6,3317.8,4.12801]
[1722279606750,1.73371889,3318.5,3317.8,4.12801]
[1722279606901,1.30637378,3318.4,3318.2,1.114]
[1722279607101,1.26016111,3318.8,3318.2,1.114]
[1722279607312,1.30646467,3318.7,3318.1,3.01373]
[1722279607518,1.30646467,3318.6,3318.1,3.01373]
[1722279607746,1.30646467,3318.5,3318.1,3.315103]
[1722279607962,10.38312,3318.9,3318.1,3.01373]
[1722279608170,4.31969507,3318.8,3317.9,3.01394]
[1722279608324,1.30654507,3318.7,3317.9,3.01394]
[1722279608731,1.30654507,3318.7,3318.0,3.01385]
[1722279609157,1.30654507,3318.7,3317.9,3.01387]
[1722279609375,1.30654507,3318.7,3318.0,3.01384]
[1722279609853,1.30654507,3318.7,3318.1,3.01374]
[1722279610051,1.30654507,3318.6,3318.1,3.01374]
[1722279610354,1.30654507,3318.5,3318.1,3.01374]
[1722279610556,3.01313,3318.8,3317.9,3.01389]
[1722279610719,4.31978413,3318.7,3317.9,3.01389]
[1722279610925,4.31988413,3318.6,3317.9,3.01389]
[1722279611226,1.30656413,3318.5,3317.4,3.01439]
[1722279611563,3.0135,3318.4,3317.7,3.01412]
[1722279611777,3.0135,3318.4,3317.5,6.02856]
[1722279611778,1.30656413,3318.3,3317.5,6.02856]
[1722279611931,1.30656413,3318.3,3317.5,3.01425]
[1722279612123,1.30656413,3318.3,3317.3,3.01447]
[1722279612373,3.44571641,3318.2,3317.4,3.0]
[1722279612937,3.01383,3318.1,3317.4,3.0]
[1722279613123,3.01383,3318.1,3317.3,3.01447]
[1722279613475,3.01387,3318.0,3317.2,3.01458]
[1722279613819,3.01404,3317.8,3317.0,3.0147]
[1722279615387,3.01431,3317.5,3316.8,3.01492]
[1722279615966,3.01431,3317.5,3316.6,6.03019]
[1722279616271,3.01431,3317.5,3316.6,3.01507]
[1722279616480,3.01414,3317.7,3316.8,3.01488]
[1722279616708,3.01414,3317.7,3316.6,3.01507]
[1722279616709,3.01387,3318.0,3316.9,0.0602929]
[1722279616987,0.301387,3317.9,3317.1,3.0146]
[1722279617190,3.865347,3317.9,3317.1,3.0146]
[1722279617502,3.865337,3317.9,3317.1,3.0146]
[1722279617999,3.865337,3317.9,3317.2,3.01458]
[1722279618524,3.01405,3317.8,3317.0,3.0147]
[1722279618759,3.4005837,3317.8,3317.0,3.0147]
[1722279620389,1.26016111,3318.4,3316.4,6.0153]
[1722279620390,11.11276111,3318.5,3317.7,3.01406]
[1722279620706,2.4826,3318.5,3317.9,3.01389]
[1722279620901,3.01316,3318.8,3317.8,0.06027578]
[1722279621099,0.533906,3318.7,3318.1,3.01371]
[1722279621298,5.33895,3318.9,3318.1,3.01371]
[1722279621687,5.33895,3318.9,3317.9,3.01395]
[1722279621688,3.01314,3318.8,3318.0,3.01384]
[1722279621900,3.01314,3318.8,3318.1,3.01376]
[1722279622213,2.3259,3318.9,3318.1,3.01376]
[1722279622214,2.3259,3318.9,3318.2,3.01366]
[1722279622361,3.0,3319.0,3318.2,3.01368]
[1722279622569,4.337,3319.0,3318.3,3.01352]
[1722279622797,3.0,3319.1,3318.3,3.01352]
[1722279623007,3.01277,3319.2,3318.2,3.01365]
[1722279623464,3.01277,3319.2,3318.3,3.01358]
[1722279623465,3.01282,3319.2,3318.3,3.01358]
[1722279623670,3.01282,3319.2,3318.4,3.01349]
[1722279623871,0.301282,3319.1,3318.4,3.01349]
[1722279624271,0.301282,3319.1,3318.2,3.01367]
[1722279624272,0.301282,3319.1,3318.5,3.01339]
[1722279624585,0.301282,3319.1,3318.3,3.01356]
[1722279624586,3.0127,3319.3,3318.4,3.01345]
[1722279624822,2.295,3319.4,3318.6,3.01325]
[1722279625026,0.55,3319.3,3318.6,3.01325]
[1722279625246,7.37,3319.6,3318.6,3.07351608]
[1722279625516,2.4579,3319.8,3318.8,3.01312]
[1722279625816,0.37180611,3319.7,3318.8,3.01312]
[1722279626115,0.37180611,3319.7,3318.6,3.01331]
[1722279626116,3.01259,3319.4,3318.6,3.01331]
[1722279626473,3.01269,3319.3,3318.5,3.0134]
[1722279626674,0.301269,3319.2,3318.4,3.01343]
[1722279626895,0.301269,3319.2,3318.5,3.01338]
[1722279627270,0.301269,3319.2,3318.3,3.01357]
[1722279627271,3.314049,3319.2,3318.3,3.01357]
[1722279627507,3.314049,3319.2,3318.4,6.01349]
[1722279627712,3.314049,3319.2,3318.4,3.01349]
[1722279628071,3.314049,3319.2,3318.5,3.0134]
[1722279628300,0.301269,3319.2,3318.5,3.0134]
[1722279628814,3.01278,3319.2,3318.5,3.0134]
[1722279629013,3.01278,3319.2,3318.3,3.01352]
[1722279629312,3.01278,3319.2,3318.4,6.01347]
[1722279631320,2.2855,3319.1,3318.2,3.01362]
[1722279631524,3.24158,3319.0,3318.1,3.01371]
[1722279631687,3.79158,3319.0,3318.1,3.01371]
[1722279632184,3.01306,3318.9,3318.1,3.01371]
[1722279632800,3.01306,3318.9,3317.9,3.01392]
[1722279632801,3.79153,3319.0,3318.0,3.01386]
[1722279633115,3.922041,3318.9,3318.1,3.0137]
[1722279633412,3.922041,3318.9,3318.0,3.01386]
[1722279633413,0.908991,3318.9,3318.2,3.01367]
[1722279633924,3.0,3319.8,3318.5,3.01338]
[1722279633925,4.27164958,3319.5,3318.5,3.01338]
[1722279634226,1.24376762,3319.4,3318.7,3.01319]
[1722279634533,5.27403,3319.5,3318.7,3.01319]
[1722279634825,5.83859461,3319.5,3318.8,3.01313]
[1722279635519,5.83859461,3319.5,3318.8,6.0262]
[1722279635520,0.56456461,3319.5,3318.8,6.0262]
[1722279635816,0.56456461,3319.5,3318.8,3.01307]
[1722279637282,3.57709461,3319.5,3318.8,3.01307]
[1722279637656,0.35770946,3319.4,3318.8,3.01307]
[1722279638000,3.01242,3319.6,3318.7,3.01322]
[1722279638211,1.24397221,3319.5,3318.7,3.01322]
[1722279638507,4.25649221,3319.5,3318.6,3.01328]
[1722279638715,1.24397221,3319.4,3318.7,3.01321]
[1722279638907,0.42564722,3319.3,3318.7,3.01321]
[1722279639110,0.42564722,3319.3,3318.8,3.0131]
[1722279639309,3.0125,3319.5,3318.8,3.0131]
[1722279639517,1.24348449,3319.4,3318.8,3.0131]
[1722279640025,3.0125,3319.5,3318.8,3.0131]
[1722279640253,1.24359465,3319.4,3318.8,3.0131]
[1722279640992,3.37180611,3319.7,3319.0,3.01294]
[1722279641228,2.43281069,3319.6,3319.0,3.01294]
[1722279641460,1.24440508,3319.5,3319.0,3.01294]
[1722279641747,4.20081561,3319.6,3318.8,3.01307]
[1722279641964,3.62212586,3319.9,3319.0,3.01294]
[1722279642172,1.24470479,3319.8,3319.1,3.0128]
[1722279642468,1.24470479,3319.8,3319.2,3.01277]
[1722279642748,1.24470479,3319.8,3319.3,3.01261]
[1722279643659,1.24470479,3319.8,3319.1,3.0128]
[1722279643958,1.24470479,3319.8,3319.2,3.01277]
[1722279644169,5.37445,3319.9,3319.2,3.01277]
[1722279644372,1.24491047,3319.8,3319.2,3.01277]
[1722279644918,4.91907652,3319.8,3319.0,3.01289]
[1722279645112,4.80729047,3319.7,3318.8,3.01306]
[1722279645360,1.24491047,3319.6,3318.8,3.01306]
[1722279645575,4.25738047,3319.6,3318.8,3.01306]
[1722279645716,4.25747047,3319.5,3318.6,3.01331]
[1722279645918,2.3566,3319.3,3318.5,3.0134]
[1722279646229,1.24491047,3319.2,3318.5,3.0134]
[1722279646623,1.24491047,3319.2,3317.9,10.013]
[1722279646624,4.25774047,3319.2,3318.4,3.01347]
[1722279646822,1.24491047,3319.1,3318.4,3.01347]
[1722279647041,4.25780047,3319.1,3318.3,3.01353]
[1722279647249,1.67069052,3319.0,3318.4,3.01349]
[1722279647513,1.24491047,3318.9,3318.4,3.01349]
[1722279647713,0.42578005,3319.0,3318.5,3.0134]
[1722279648022,1.24396509,3318.9,3318.5,3.0134]
[1722279648257,3.01279,3319.2,3318.3,3.01351]
[1722279648580,1.2440518,3319.1,3318.4,3.01347]
[1722279648980,1.2440518,3319.1,3318.2,3.01365]
[1722279648981,3.01296,3319.0,3318.2,3.01365]
[1722279649130,1.2440518,3318.9,3318.3,3.01358]
[1722279649341,3.01287,3319.1,3318.3,3.01358]
[1722279649536,1.24413962,3319.0,3318.4,3.01349]
[1722279650225,1.24413962,3319.0,3318.6,3.0133]
[1722279650446,2.3566,3319.3,3318.7,3.01322]
[1722279650659,1.24395132,3319.2,3318.7,3.01322]
[1722279651219,1.94784016,3319.2,3318.7,3.01322]
[1722279651476,1.24444196,3319.1,3318.6,3.0133]
[1722279652519,1.24444196,3319.1,3318.3,3.01355]
[1722279652520,1.24444196,3319.1,3318.4,3.01342]
[1722279652752,1.24444196,3319.1,3318.3,3.01358]
[1722279652753,3.01295,3319.0,3318.3,3.01358]
[1722279652955,1.24444196,3318.9,3318.3,3.01358]
[1722279654079,3.71671884,3319.2,3318.7,3.01316]
[1722279654080,0.70388884,3319.2,3318.7,3.01316]
[1722279654279,1.24387486,3319.1,3318.7,3.01316]
[1722279654566,0.42574705,3319.4,3318.7,3.01316]
[1722279654735,1.2438238,3319.3,3318.7,3.01316]
[1722279654934,4.2565138,3319.3,3318.5,5.29443]
[1722279655168,2.01331289,3319.2,3318.6,3.01326]
[1722279655471,1.2438238,3319.1,3318.5,3.01335]
[1722279655822,6.6887638,3319.1,3318.3,3.01353]
[1722279656063,1.2438238,3319.0,3318.1,6.01371]
[1722279656220,1.2438238,3319.0,3318.0,3.01383]
[1722279656221,3.68193638,3318.9,3318.0,3.01383]
[1722279656425,3.01329,3318.7,3318.0,3.01383]
[1722279656732,2.432,3318.5,3317.8,3.01402]
[1722279656961,2.432,3318.5,3317.9,3.01394]
[1722279657229,1.24361812,3318.4,3317.9,3.01394]
[1722279658368,5.42905,3318.8,3318.1,3.01376]
[1722279658585,5.42905,3318.8,3317.8,3.01402]
[1722279658586,1.24340464,3318.7,3317.8,3.01402]
[1722279658729,3.01332,3318.6,3317.8,3.01402]
[1722279658923,1.24340464,3318.5,3317.9,3.01392]
[1722279659562,2.4159,3318.8,3317.9,3.01392]
[1722279659881,1.97952676,3318.7,3317.9,3.01392]
[1722279660070,1.24361945,3318.6,3317.9,3.01392]
[1722279660295,1.24361945,3318.6,3318.0,3.01386]
[1722279660488,1.24361945,3318.6,3317.8,3.01398]
[1722279660624,1.24361945,3318.6,3317.9,3.01393]
[1722279661035,1.24361945,3318.6,3318.0,3.01384]
[1722279661541,1.24361945,3318.5,3318.0,3.01384]
[1722279661724,5.42905,3318.8,3318.0,3.01384]
[1722279662021,1.2435919,3318.7,3318.1,3.01374]
[1722279662227,1.2435919,3318.7,3317.9,3.01389]
[1722279662460,1.2435919,3318.7,3318.0,3.01385]
[1722279662839,1.2435919,3318.7,3318.1,3.01377]
[1722279663274,2.140699,3318.7,3318.1,3.01377]
[1722279663481,1.2435919,3318.6,3317.6,2.4508]
[1722279663625,1.2435919,3318.5,3317.6,5.4508]
[1722279663821,1.26121676,3318.9,3318.2,3.01361]
[1722279664023,1.24363406,3318.8,3318.2,3.01362]
[1722279664338,1.24363406,3318.8,3317.6,6.01419]
[1722279664339,2.50485082,3318.7,3317.6,6.01419]
[1722279664542,3.01368,3318.2,3317.4,3.01438]
[1722279664764,1.24363406,3318.1,3317.5,3.01431]
[1722279665290,1.24363406,3318.1,3317.0,3.01476]
[1722279665291,2.3122,3317.9,3317.0,3.01476]
[1722279665500,4.79035106,3317.8,3317.0,3.01476]
[1722279665792,4.79035106,3317.8,3316.8,3.01491]
[1722279665793,1.26121676,3317.6,3316.8,3.01491]
[1722279665997,1.24363406,3317.5,3316.8,3.01491]
[1722279666132,1.24363406,3317.5,3316.9,3.01484]
[1722279666541,4.27775635,3317.7,3316.9,3.01484]
[1722279666542,1.24363406,3317.4,3316.9,3.01484]
[1722279666731,4.27775635,3317.7,3316.9,3.01484]
[1722279666732,1.24363406,3317.3,3316.9,3.01484]
[1722279666930,4.27775635,3317.7,3316.9,3.01484]
[1722279667159,1.24237589,3317.6,3316.9,3.01484]
[1722279667372,1.24237589,3317.6,3317.0,3.01476]
[1722279667689,1.24237589,3317.6,3317.1,3.0146]
[1722279668123,1.24237589,3317.5,3317.2,3.0145]
[1722279668331,1.24237589,3317.5,3317.1,3.0146]
[1722279668332,3.57581635,3317.9,3317.3,3.01447]
[1722279668602,1.24245668,3317.8,3317.1,3.0146]
[1722279668800,1.24245668,3317.8,3316.5,2.2715]
[1722279669354,1.24245668,3317.8,3316.7,3.01501]
[1722279669355,3.01419,3317.7,3316.7,3.01501]
[1722279669556,1.24245668,3317.6,3316.7,3.01501]
[1722279669758,1.24245668,3317.6,3316.8,3.01494]
[1722279670707,1.24245668,3317.6,3317.0,3.01477]
[1722279671214,7.40670003,3317.9,3317.1,3.01467]
[1722279671215,6.14308368,3317.9,3317.1,3.01467]
[1722279671522,1.24254039,3317.8,3317.1,3.01467]
[1722279671743,1.79254039,3317.8,3317.1,3.01467]
[1722279671901,1.24254039,3317.7,3317.1,3.01467]
[1722279672393,1.46992404,3317.8,3317.2,3.01456]
[1722279672594,0.81692368,3317.9,3317.2,3.01456]
[1722279672955,3.0138,3318.1,3317.2,3.01456]
[1722279673116,1.24257657,3318.0,3317.5,3.01431]
[1722279673457,3.01368,3318.2,3317.5,3.01431]
[1722279673458,1.24289348,3317.9,3317.5,3.01431]
[1722279673750,3.01368,3318.2,3317.5,3.01431]
[1722279673969,3.75231635,3318.3,3317.7,3.01412]
[1722279673970,2.4887,3318.3,3317.7,3.01412]
[1722279674109,1.24282,3318.2,3317.6,3.01414]
[1722279674311,2.4887,3318.3,3317.6,3.01414]
[1722279674312,5.50229,3318.3,3317.6,3.01414]
[1722279674839,1.24287272,3318.2,3317.6,3.01414]
[1722279675262,4.25655272,3318.2,3317.5,3.01425]
[1722279675538,5.50229,3318.3,3317.5,3.01425]
[1722279675741,1.24334595,3318.2,3317.5,3.01425]
[1722279677533,4.25702595,3318.2,3317.5,3.01425]
[1722279677738,3.01368,3318.2,3317.5,3.01425]
[1722279678039,3.340272,3318.3,3317.6,3.01415]
[1722279678241,1.24336937,3318.2,3317.7,3.01407]
[1722279678545,1.24336937,3318.2,3317.3,0.06028162]
[1722279678546,3.52281635,3318.7,3317.9,3.01395]
[1722279678752,2.26958306,3318.6,3318.0,3.01385]
[1722279678899,1.24329839,3318.5,3318.0,3.01385]
[1722279679100,1.24329839,3318.4,3318.0,3.01385]
[1722279679302,5.27243,3318.7,3318.0,3.01385]
[1722279679522,1.89697743,3318.6,3318.0,3.01385]
[1722279679749,1.89697743,3318.6,3317.8,3.01404]
[1722279679750,4.25680279,3318.5,3317.8,3.01397]
[1722279679903,4.25680279,3318.5,3317.6,3.01416]
[1722279679904,4.25687279,3318.4,3317.6,3.01416]
[1722279680105,1.24337279,3318.3,3317.7,3.01412]
[1722279680324,1.24337279,3318.3,3317.4,3.01436]
[1722279680611,3.01373,3318.2,3317.4,3.01434]
[1722279680904,1.243663,3318.1,3317.4,3.01434]
[1722279681666,3.01373,3318.2,3317.4,3.01434]
[1722279681802,1.24321719,3318.1,3317.4,3.01434]
[1722279682305,4.25704719,3318.1,3317.3,3.01443]
[1722279682503,3.01383,3318.1,3317.4,3.0]
[1722279683215,3.65914373,3318.1,3317.4,3.0]
[1722279683747,2.3405,3318.0,3317.4,6.0144]
[1722279683936,1.24300179,3317.9,3317.4,3.0144]
[1722279684130,2.3405,3318.0,3317.4,3.0144]
[1722279684362,1.24300808,3317.9,3317.4,3.0144]
[1722279685035,1.96727326,3317.9,3317.4,3.0144]
[1722279685207,1.24305061,3317.8,3317.4,3.0144]
[1722279685411,0.72426518,3317.9,3317.2,3.01451]
[1722279685604,0.72426518,3317.9,3316.9,3.01483]
[1722279685605,3.01422,3317.6,3316.9,3.01483]
[1722279685805,3.43993186,3317.6,3316.9,3.01483]
[1722279686876,0.42571186,3317.6,3316.9,3.01483]
[1722279687076,3.56405,3317.8,3317.0,3.01476]
[1722279687900,3.01413,3317.7,3317.0,3.01476]
[1722279688310,3.56405,3317.8,3316.8,5.38498]
[1722279688311,3.01423,3317.6,3316.8,5.38498]
[1722279688917,3.01423,3317.6,3316.7,3.01501]
[1722279689226,2.266,3317.5,3316.7,3.01501]
[1722279689507,3.01447,3317.4,3316.5,3.01521]
[1722279689667,3.01447,3317.4,3316.1,3.01552]
[1722279689668,3.01495,3316.8,3316.1,3.01552]